fUSD/lending_fUSD_20250417
["ID","MTS","AMOUNT","RATE_DAILY","PERIOD"]
[358250434,1744876300290,-500.0,0.00051232,120]
[358250435,1744876300300,-500.0,0.00051232,120]
[358250436,1744876300309,-1214.17,0.00051232,120]
[358250437,1744876300319,-500.0,0.00051232,120]
[358250438,1744876300329,-500.0,0.00051232,120]
[358250439,1744876300338,-563.29,0.00051232,120]
[358250440,1744876300349,-765.17,0.00051232,120]
[358250441,1744876300358,-781.9,0.00051232,120]
[358250442,1744876300367,-2735.7,0.00051232,120]
[358250443,1744876300376,-2102.94,0.00051232,120]
[358250444,1744876300386,-1420.11,0.00051232,120]
[358250445,1744876300395,-500.0,0.00051232,120]
[358250446,1744876300404,-541.28,0.00051232,120]
[358250447,1744876300414,-524.96,0.00051232,120]
[358250448,1744876300423,-500.0,0.00051232,120]
[358250449,1744876300432,-500.0,0.00051232,120]
[358250450,1744876300441,-776.69,0.00051232,120]
[358250451,1744876300451,-1055.54,0.00051232,120]
[358250452,1744876300460,-500.0,0.00051232,120]
[358250453,1744876300470,-1489.79,0.00051232,120]
[358250454,1744876300479,-1656.3,0.00051232,120]
[358250455,1744876300488,-1158.21,0.00051232,35]
[358250456,1744876300498,-500.0,0.00051232,120]
[358250457,1744876300508,-500.0,0.00051232,120]
[358250458,1744876300517,-500.0,0.00051232,120]
[358250459,1744876300526,-1223.23,0.00051232,120]
[358250460,1744876300536,-1296.94,0.00051232,120]
[358250461,1744876300545,-606.92,0.00051232,120]
[358250462,1744876300555,-500.0,0.00051232,120]
[358250463,1744876300564,-500.0,0.00051232,120]
[358250464,1744876300573,-1176.7,0.00051232,120]
[358250465,1744876300583,-1628.14,0.00051232,120]
[358250466,1744876300592,-1112.64,0.00051232,120]
[358250467,1744876300600,-2221.31,0.00051232,120]
[358250468,1744876300608,-500.0,0.00051232,120]
[358250469,1744876300617,-500.0,0.00051232,120]
[358250470,1744876300625,-500.0,0.00051232,120]
[358250471,1744876300633,-530.74,0.00051232,120]
[358250472,1744876300641,-862.16,0.00051232,120]
[358250473,1744876300649,-1379.41,0.00051232,120]
[358250474,1744876300657,-500.0,0.00051232,120]
[358250475,1744876300666,-507.47,0.00051232,120]
[358250476,1744876300674,-997.54,0.00051232,120]
[358250477,1744876300683,-500.0,0.00051232,120]
[358250478,1744876300693,-1247.38,0.00051232,120]
[358250479,1744876300702,-500.0,0.00051232,120]
[358250480,1744876300712,-500.0,0.00051232,120]
[358250481,1744876300722,-500.0,0.00051232,120]
[358250482,1744876300731,-519.16,0.00051232,120]
[358250483,1744876300740,-730.71,0.00051232,120]
[358250484,1744876300750,-946.46,0.00051232,120]
[358250485,1744876300759,-500.0,0.00051232,120]
[358250486,1744876300770,-500.0,0.00051232,120]
[358250487,1744876300780,-1007.48,0.00051232,120]
[358250488,1744876300789,-559.91,0.00051232,120]
[358250489,1744876300798,-500.0,0.00051232,120]
[358250490,1744876300808,-1373.68,0.00051232,120]
[358250491,1744876300817,-500.0,0.00051232,120]
[358250492,1744876300827,-940.05,0.00051232,120]
[358250493,1744876300837,-500.0,0.00051232,120]
[358250494,1744876300847,-500.0,0.00051232,120]
[358250495,1744876300856,-1203.26,0.00051232,120]
[358250496,1744876300865,-825.67,0.00051232,120]
[358250497,1744876300875,-1575.92,0.00051232,120]
[358250498,1744876300884,-500.0,0.00051232,120]
[358250499,1744876300893,-1004.58,0.00051232,120]
[358250500,1744876300903,-1167.01,0.00051232,120]
[358250501,1744876300912,-500.0,0.00051232,120]
[358250502,1744876300921,-701.01,0.00051232,120]
[358250503,1744876300931,-1323.83,0.00051232,120]
[358250504,1744876300940,-803.28,0.00051232,30]
[358250505,1744876300951,-507.89,0.00051232,120]
[358250506,1744876300960,-1748.54,0.00051232,120]
[358250507,1744876300970,-3514.34,0.00051232,120]
[358250508,1744876300979,-500.0,0.00051232,120]
[358250509,1744876300989,-500.0,0.00051232,120]
[358250510,1744876300999,-1749.19,0.00051232,120]
[358250511,1744876301008,-1134.15,0.00051232,120]
[358250512,1744876301018,-500.0,0.00051232,120]
[358250513,1744876301027,-1115.45,0.00051232,120]
[358250514,1744876301037,-1157.9,0.00051232,120]
[358250515,1744876301046,-1269.95,0.00051232,120]
[358250516,1744876301055,-1020.0,0.00051232,120]
[358250517,1744876301064,-500.0,0.00051232,120]
[358250518,1744876301074,-500.0,0.00051232,120]
[358250519,1744876301084,-1129.1,0.00051232,120]
[358250520,1744876301093,-568.86,0.00051232,120]
[358250521,1744876301102,-1581.24,0.00051232,120]
[358250522,1744876301111,-766.52,0.00051232,120]
[358250523,1744876301122,-390.08515284,0.00051232,120]
[358250524,1744876301130,-500.0,0.00051232,120]
[358250525,1744876301139,-683.59,0.00051232,120]
[358250526,1744876301148,-500.0,0.00051232,120]
[358250527,1744876301159,-605.07,0.00051232,120]
[358250528,1744876301168,-1943.48,0.00051232,120]
[358250529,1744876301177,-500.0,0.00051232,120]
[358250530,1744876301187,-945.69,0.00051232,120]
[358250531,1744876301198,-500.0,0.00051232,120]
[358250532,1744876301208,-1873.76,0.00051232,120]
[358250533,1744876301218,-500.0,0.00051232,120]
[358250534,1744876301227,-500.0,0.00051232,120]
[358250535,1744876301237,-566.9,0.00051232,120]
[358250536,1744876301247,-500.0,0.00051232,120]
[358250537,1744876301257,-536.75,0.00051232,120]
[358250538,1744876301267,-500.0,0.00051232,120]
[358250539,1744876301277,-500.0,0.00051232,30]
[358250540,1744876301286,-1511.21,0.00051232,120]
[358250541,1744876301296,-2015.84,0.00051232,120]
[358250542,1744876301306,-500.0,0.00051232,120]
[358250543,1744876301315,-500.0,0.00051232,120]
[358250544,1744876301325,-576.1,0.00051232,120]
[358250545,1744876301335,-500.0,0.00051232,120]
[358250546,1744876301345,-503.02,0.00051232,120]
[358250547,1744876301356,-1485.3,0.00051232,120]
[358250548,1744876301366,-500.0,0.00051232,120]
[358250549,1744876301377,-616.82,0.00051232,120]
[358250550,1744876301386,-1889.42,0.00051232,120]
[358250551,1744876301396,-500.0,0.00051232,120]
[358250552,1744876301405,-521.54,0.00051232,120]
[358250553,1744876301415,-500.0,0.00051232,120]
[358250554,1744876301424,-500.0,0.00051232,120]
[358250555,1744876301434,-1626.25,0.00051232,120]
[358250556,1744876301443,-1000.0,0.00051232,120]
[358250557,1744876301452,-1339.26,0.00051232,120]
[358250558,1744876301462,-1497.28,0.00051232,120]
[358250559,1744876301471,-1832.25,0.00051232,120]
[358250560,1744876301480,-630.84,0.00051232,120]
[358250561,1744876301490,-500.0,0.00051232,120]
[358250562,1744876301500,-615.64,0.00051232,120]
[358250563,1744876301510,-500.0,0.00051232,120]
[358250564,1744876301520,-692.24,0.00051232,120]
[358250565,1744876301530,-500.0,0.00051232,120]
[358250566,1744876301539,-500.0,0.00051232,120]
[358250567,1744876301549,-1231.98,0.00051232,120]
[358250568,1744876301559,-1043.32,0.00051232,120]
[358250569,1744876301568,-500.0,0.00051232,120]
[358250570,1744876301578,-1684.61,0.00051232,120]
[358250571,1744876301587,-500.0,0.00051232,120]
[358250572,1744876301597,-500.0,0.00051232,120]
[358250573,1744876301606,-668.2,0.00051232,120]
[358250574,1744876301615,-500.0,0.00051232,120]
[358250575,1744876301624,-500.0,0.00051232,120]
[358250576,1744876301633,-500.0,0.00051232,120]
[358250577,1744876301643,-500.0,0.00051232,120]
[358250578,1744876301652,-500.0,0.00051232,120]
[358250579,1744876301661,-500.0,0.00051232,120]
[358250580,1744876301671,-500.0,0.00051232,120]
[358250581,1744876301680,-864.39,0.00051232,120]
[358250582,1744876301690,-626.02,0.00051232,120]
[358250583,1744876301699,-1072.56,0.00051232,120]
[358250584,1744876301709,-500.0,0.00051232,120]
[358250585,1744876301718,-1764.88,0.00051232,120]
[358250586,1744876301728,-500.0,0.00051232,120]
[358250587,1744876301738,-5640.62,0.00051232,120]
[358250588,1744876301748,-917.98,0.00051232,120]
[358250589,1744876301757,-1475.44,0.00051232,120]
[358250590,1744876301767,-500.0,0.00051232,120]
[358250591,1744876301776,-500.0,0.00051232,120]
[358250592,1744876301786,-1612.75,0.00051232,120]
[358250593,1744876301795,-500.0,0.00051232,120]
[358250594,1744876301806,-500.0,0.00051232,120]
[358250595,1744876301814,-2211.01,0.00051232,120]
[358250596,1744876301823,-791.97,0.00051232,14]
[358250597,1744876301831,-1177.02,0.00051232,120]
[358250598,1744876301840,-338.91767018,0.00051232,120]
[358250599,1744876301849,-1468.16,0.00051232,120]
[358250600,1744876301859,-1829.33,0.00051232,120]
[358250601,1744876301868,-500.0,0.00051232,120]
[358250602,1744876301878,-500.0,0.00051232,120]
[358250603,1744876301887,-520.62,0.00051232,120]
[358250604,1744876301896,-500.0,0.00051232,120]
[358250605,1744876301906,-500.0,0.00051232,120]
[358250606,1744876301917,-793.46,0.00051232,120]
[358250607,1744876301928,-500.0,0.00051232,120]
[358250608,1744876301938,-551.66898038,0.00051232,120]
[358250609,1744876301947,-500.0,0.00051232,120]
[358250610,1744876301956,-500.0,0.00051232,120]
[358250611,1744876301965,-500.0,0.00051232,120]
[358250612,1744876301974,-527.45,0.00051232,120]
[358250613,1744876301983,-1128.03,0.00051232,120]
[358250614,1744876301992,-500.0,0.00051232,120]
[358250615,1744876302001,-500.0,0.00051232,120]
[358250616,1744876302011,-500.0,0.00051232,120]
[358250617,1744876302020,-500.0,0.00051232,120]
[358250618,1744876302029,-10543.98,0.00051232,120]
[358250619,1744876302038,-10543.98,0.00051232,120]
[358250620,1744876302047,-674.54,0.00051232,120]
[358250621,1744876302056,-504.45,0.00051232,120]
[358250622,1744876302067,-500.0,0.00051232,120]
[358250623,1744876302077,-500.0,0.00051232,120]
[358250624,1744876302087,-586.57,0.00051232,120]
[358250625,1744876302097,-500.0,0.00051232,120]
[358250626,1744876302107,-500.0,0.00051232,120]
[358250627,1744876302119,-500.0,0.00051232,120]
[358250628,1744876302133,-500.0,0.00051232,120]
[358250629,1744876302143,-330.38531769,0.00051232,120]
[358250630,1744876302153,-500.0,0.00051232,120]
[358250631,1744876302163,-1036.71,0.00051232,120]
[358250632,1744876302174,-500.0,0.00051232,120]
[358250633,1744876302183,-909.38,0.00051232,120]
[358250634,1744876302193,-500.0,0.00051232,120]
[358250635,1744876302203,-500.0,0.00051232,120]
[358250636,1744876302213,-500.0,0.00051232,120]
[358250637,1744876302222,-500.0,0.00051232,120]
[358250638,1744876302231,-1171.86,0.00051232,120]
[358250639,1744876302241,-500.0,0.00051232,120]
[358250640,1744876302251,-2181.26,0.00051232,120]
[358250641,1744876302260,-500.0,0.00051232,120]
[358250642,1744876302272,-595.54248089,0.00051232,120]
[358250643,1744876302284,-675.13,0.00051232,120]
[358250644,1744876302294,-500.0,0.00051232,120]
[358250645,1744876302303,-500.0,0.00051232,120]
[358250646,1744876302313,-500.0,0.00051232,120]
[358250647,1744876302322,-500.0,0.00051232,120]
[358250648,1744876302331,-481.27603387,0.00051232,120]
[358250649,1744876302341,-500.0,0.00051232,120]
[358250650,1744876302351,-500.0,0.00051232,120]
[358250651,1744876302362,-1081.53,0.00051232,120]
[358250652,1744876302372,-1595.7,0.00051232,120]
[358250653,1744876302381,-500.0,0.00051232,120]
[358250654,1744876302391,-1097.37,0.00051232,120]
[358250655,1744876302401,-500.0,0.00051232,120]
[358250656,1744876302410,-500.0,0.00051232,120]
[358250657,1744876302419,-1093.79,0.00051232,120]
[358250658,1744876302429,-722.02,0.00051232,120]
[358250659,1744876302440,-978.59,0.00051232,120]
[358250660,1744876302449,-1836.63,0.00051232,120]
[358250661,1744876302460,-500.0,0.00051232,120]
[358250662,1744876302470,-500.0,0.00051232,120]
[358250663,1744876302479,-614.33,0.00051232,120]
[358250664,1744876302489,-1012.01,0.00051232,120]
[358250665,1744876302499,-2529.41,0.00051232,120]
[358250666,1744876302508,-1942.54,0.00051232,120]
[358250667,1744876302518,-500.0,0.00051232,120]
[358250668,1744876302527,-2464.72,0.00051232,120]
[358250669,1744876302537,-339.96364349,0.00051232,120]
[358250670,1744876302546,-1110.2,0.00051232,120]
[358250671,1744876302555,-771.84,0.00051232,120]
[358250672,1744876302565,-500.0,0.00051232,120]
[358250673,1744876302575,-1931.2,0.00051232,120]
[358250674,1744876302584,-500.0,0.00051232,120]
[358250675,1744876302594,-500.0,0.00051232,120]
[358250676,1744876302603,-676.22,0.00051232,120]
[358250677,1744876302612,-634.37247937,0.00051232,120]
[358250678,1744876302622,-500.0,0.00051232,120]
[358250679,1744876302631,-601.64,0.00051232,120]
[358250680,1744876302641,-2027.54,0.00051232,120]
[358250681,1744876302650,-1731.61,0.00051232,120]
[358250682,1744876302661,-500.0,0.00051232,120]
[358250683,1744876302670,-506.42,0.00051232,120]
[358250684,1744876302680,-560.74,0.00051232,120]
[358250685,1744876302690,-500.0,0.00051232,120]
[358250686,1744876302701,-1571.6,0.00051232,120]
[358250687,1744876302711,-575.17,0.00051232,120]
[358250688,1744876302720,-500.0,0.00051232,120]
[358250689,1744876302730,-500.0,0.00051232,120]
[358250690,1744876302739,-1491.97,0.00051232,120]
[358250691,1744876302749,-500.0,0.00051232,120]
[358250692,1744876302759,-1061.2,0.00051232,120]
[358250693,1744876302768,-500.0,0.00051232,120]
[358250694,1744876302777,-1783.03,0.00051232,120]
[358250695,1744876302786,-500.0,0.00051232,120]
[358250696,1744876302796,-559.87,0.00051232,120]
[358250697,1744876302972,-500.0,0.00051232,120]
[358250698,1744876302982,-500.0,0.00051232,120]
[358250699,1744876302992,-500.0,0.00051232,120]
[358250700,1744876303001,-500.0,0.00051232,120]
[358250701,1744876303011,-1489.6,0.00051232,120]
[358250702,1744876303020,-3035.42,0.00051232,120]
[358250703,1744876303030,-2015.28,0.00051232,120]
[358250704,1744876303039,-1985.57,0.00051232,120]
[358250705,1744876303049,-835.38,0.00051232,120]
[358250706,1744876303058,-843.17,0.00051232,120]
[358250707,1744876303068,-728.48,0.00051232,120]
[358250708,1744876303078,-2125.57,0.00051232,120]
[358250709,1744876303087,-506.65,0.00051232,120]
[358250710,1744876303097,-517.91,0.00051232,120]
[358250711,1744876303106,-531.0,0.00051232,120]
[358250712,1744876303117,-1110.06,0.00051232,120]
[358250713,1744876303128,-500.0,0.00051232,120]
[358250714,1744876303138,-3548.1,0.00051232,120]
[358250715,1744876303147,-887.03,0.00051232,120]
[358250716,1744876303157,-500.0,0.00051232,120]
[358250717,1744876303167,-1073.22,0.00051232,120]
[358250718,1744876303176,-500.0,0.00051232,120]
[358250719,1744876303185,-500.0,0.00051232,120]
[358250720,1744876303196,-500.0,0.00051232,120]
[358250721,1744876303205,-500.0,0.00051232,120]
[358250722,1744876303215,-500.0,0.00051232,120]
[358250723,1744876303224,-500.0,0.00051232,120]
[358250724,1744876303234,-500.0,0.00051232,120]
[358250725,1744876303245,-500.0,0.00051232,120]
[358250726,1744876303254,-1152.77,0.00051232,120]
[358250727,1744876303264,-500.0,0.00051232,120]
[358250728,1744876303274,-2168.54,0.00051232,120]
[358250729,1744876303283,-568.46,0.00051232,120]
[358250730,1744876303293,-500.0,0.00051232,120]
[358250731,1744876303303,-500.0,0.00051232,120]
[358250732,1744876303312,-500.0,0.00051232,120]
[358250733,1744876303322,-888.6,0.00051232,120]
[358250734,1744876303331,-500.0,0.00051232,120]
[358250735,1744876303341,-1780.21,0.00051232,120]
[358250736,1744876303350,-500.0,0.00051232,120]
[358250737,1744876303361,-979.12,0.00051232,120]
[358250738,1744876303371,-2832.46,0.00051232,120]
[358250739,1744876303380,-1076.61,0.00051232,120]
[358250740,1744876303390,-518.93,0.00051232,120]
[358250741,1744876303399,-500.0,0.00051232,120]
[358250742,1744876303408,-889.68,0.00051232,120]
[358250743,1744876303418,-500.0,0.00051232,120]
[358250744,1744876303427,-3566.71,0.00051232,120]
[358250745,1744876303437,-1124.76,0.00051232,120]
[358250746,1744876303446,-1217.56,0.00051232,120]
[358250747,1744876303455,-1639.19,0.00051232,120]
[358250748,1744876303465,-1092.56,0.00051232,120]
[358250749,1744876303474,-500.0,0.00051232,120]
[358250750,1744876303483,-972.81,0.00051232,118]
[358250751,1744876303493,-1788.27,0.00051232,120]
[358250752,1744876303502,-861.37,0.00051232,120]
[358250753,1744876303511,-822.54,0.00051232,120]
[358250754,1744876303521,-500.0,0.00051232,120]
[358250755,1744876303530,-500.0,0.00051232,120]
[358250756,1744876303540,-702.66,0.00051232,120]
[358250757,1744876303550,-1270.01,0.00051232,120]
[358250758,1744876303559,-500.0,0.00051232,120]
[358250759,1744876303568,-500.0,0.00051232,120]
[358250760,1744876303580,-909.8,0.00051232,120]
[358250761,1744876303594,-593.0,0.00051232,120]
[358250762,1744876303603,-753.51,0.00051232,120]
[358250763,1744876303612,-516.56,0.00051232,120]
[358250764,1744876303622,-973.47,0.00051232,120]
[358250765,1744876303632,-500.0,0.00051232,120]
[358250766,1744876303641,-2790.52,0.00051232,120]
[358250767,1744876303651,-500.0,0.00051232,120]
[358250768,1744876303660,-500.0,0.00051232,120]
[358250769,1744876303670,-555.93,0.00051232,120]
[358250770,1744876303679,-554.36,0.00051232,120]
[358250771,1744876303688,-1344.71,0.00051232,120]
[358250772,1744876303698,-1633.9,0.00051232,120]
[358250773,1744876303708,-1508.99,0.00051232,120]
[358250774,1744876303718,-500.0,0.00051232,120]
[358250775,1744876303727,-500.0,0.00051232,120]
[358250776,1744876303736,-801.2,0.00051232,120]
[358250777,1744876303746,-3739.63,0.00051232,120]
[358250778,1744876303756,-2484.07,0.00051232,120]
[358250779,1744876303765,-500.0,0.00051232,120]
[358250780,1744876303775,-500.0,0.00051232,120]
[358250781,1744876303784,-605.98,0.00051232,120]
[358250782,1744876303794,-273.64696081,0.00051232,120]
[358250783,1744876303803,-500.0,0.00051232,120]
[358250784,1744876303813,-3141.6,0.00051232,120]
[358250785,1744876303824,-1042.98,0.00051232,120]
[358250786,1744876303833,-536.48,0.00051232,120]
[358250787,1744876303842,-1821.22,0.00051232,120]
[358250788,1744876303851,-500.0,0.00051232,120]
[358250789,1744876303860,-1155.97,0.00051232,120]
[358250790,1744876303870,-500.0,0.00051232,120]
[358250791,1744876303879,-608.82,0.00051232,120]
[358250792,1744876303889,-1542.01,0.00051232,120]
[358250793,1744876303898,-500.0,0.00051232,120]
[358250794,1744876303908,-598.13897909,0.00051232,120]
[358250795,1744876303917,-608.54,0.00051232,120]
[358250796,1744876303926,-500.0,0.00051232,120]
[358250797,1744876303935,-1023.29,0.00051232,120]
[358250798,1744876303944,-505.15,0.00051232,120]
[358250799,1744876303953,-512.28,0.00051232,120]
[358250800,1744876303962,-996.12,0.00051232,120]
[358250801,1744876303971,-500.0,0.00051232,120]
[358250802,1744876303981,-821.03,0.00051232,120]
[358250803,1744876303990,-500.0,0.00051232,120]
[358250804,1744876303999,-533.51,0.00051232,120]
[358250805,1744876304008,-1488.96,0.00051232,120]
[358250806,1744876304017,-2888.97,0.00051232,120]
[358250807,1744876304026,-500.0,0.00051232,120]
[358250808,1744876304035,-605.83,0.00051232,120]
[358250809,1744876304044,-529.27,0.00051232,120]
[358250810,1744876304053,-570.18,0.00051232,120]
[358250811,1744876304063,-722.72,0.00051232,120]
[358250812,1744876304072,-754.15,0.00051232,120]
[358250813,1744876304082,-1214.83,0.00051232,120]
[358250814,1744876304091,-3500.0,0.00051232,10]
[358250815,1744876304100,-500.0,0.00051232,120]
[358250816,1744876304109,-500.0,0.00051232,2]
[358250817,1744876304119,-1002.18,0.00051232,8]
[358250818,1744876304129,-500.0,0.00051232,120]
[358250819,1744876304138,-1218.38,0.00051232,120]
[358250820,1744876304148,-1097.9,0.00051232,120]
[358250821,1744876304158,-500.0,0.00051232,120]
[358250822,1744876304167,-1622.19,0.00051232,120]
[358250823,1744876304177,-7361.74,0.00051232,120]
[358250824,1744876304186,-779.5,0.00051232,120]
[358250825,1744876304198,-2365.86,0.00051232,120]
[358250826,1744876304208,-500.0,0.00051232,120]
[358250827,1744876304217,-350.0,0.00051268,10]
[358250828,1744876304227,-658.32958279,0.00051315,120]
[358250829,1744876304236,-500.0,0.00051328,120]
[358250830,1744876304246,-500.0,0.00051328,120]
[358250831,1744876304255,-500.0,0.00051328,120]
[358250832,1744876304264,-500.0,0.00051328,120]
[358250833,1744876304273,-500.0,0.00051328,120]
[358250834,1744876304283,-500.0,0.00051328,120]
[358250835,1744876304292,-500.0,0.00051328,120]
[358250836,1744876304302,-500.0,0.00051328,120]
[358250837,1744876304311,-500.0,0.00051328,120]
[358250838,1744876304320,-535.05,0.00051328,120]
[358250839,1744876304330,-209.0,0.0005136,30]
[358250840,1744876304339,-300.0,0.00051382,30]
[358250841,1744876304348,-1296.368,0.00051383,120]
[358250842,1744876304359,-2048.0,0.00051383,120]
[358250843,1744876304369,-1328.0,0.00051383,120]
[358250844,1744876304378,-792.0,0.00051383,2]
[358250845,1744876304387,-545.0,0.00051383,120]
[358250846,1744876304396,-1280.0,0.00051383,120]
[358250847,1744876304405,-907.0,0.00051383,120]
[358250848,1744876304415,-1439.0,0.00051383,120]
[358250849,1744876304425,-576.0,0.00051383,120]
[358250850,1744876304434,-4150.0,0.00051383,120]
[358250851,1744876304444,-250.0,0.00051383,120]
[358250852,1744876304453,-155.028,0.00051383,120]
[358250853,1744876304463,-3980.068,0.00051383,120]
[358250854,1744876304473,-865.0,0.00051383,120]
[358250855,1744876304482,-237.0,0.00051383,2]
[358250856,1744876304492,-447.68,0.00051398,30]
[358250857,1744876304502,-371.01851598,0.00051407,2]
[358250858,1744876304511,-11860.27852598,0.00051412,2]
[358250859,1744876304521,-312.45056856,0.00051475,2]
[358250860,1744876304530,-258.28722689,0.00051475,2]
[358250861,1744876304539,-474.97054933,0.00051498,44]
[358250862,1744876304549,-759.0,0.000515,30]
[358250863,1744876304558,-236.0,0.000515,30]
[358250864,1744876304567,-989.3,0.000515,30]
[358250865,1744876304577,-1000.0,0.000515,7]
[358250866,1744876304587,-372.0,0.000515,30]
[358250867,1744876304596,-161.357925,0.00051506,120]
[358250868,1744876304606,-171.41279,0.00051506,120]
[358250869,1744876304615,-591.156374,0.00051506,120]
[358250870,1744876304629,-199.642189,0.00051506,120]
[358250871,1744876304640,-227.981738,0.00051506,120]
[358250872,1744876304649,-500.0,0.00051506,120]
[358250873,1744876304659,-1611.74,0.00051506,120]
[358250874,1744876304668,-772.09,0.00051506,120]
[358250875,1744876304677,-3077.05,0.00051506,120]
[358250876,1744876304687,-500.0,0.00051506,120]
[358250877,1744876304695,-500.0,0.00051506,120]
[358250878,1744876304705,-516.0,0.00051506,120]
[358250879,1744876304714,-825.74,0.00051506,120]
[358250880,1744876304723,-500.0,0.00051506,120]
[358250881,1744876304732,-500.0,0.00051506,120]
[358250882,1744876304742,-500.0,0.00051506,120]
[358250883,1744876304752,-1329.86,0.00051506,120]
[358250884,1744876304761,-1041.46,0.00051506,120]
[358250885,1744876304771,-500.0,0.00051506,120]
[358250886,1744876304780,-500.0,0.00051506,120]
[358250887,1744876304789,-995.71,0.00051506,120]
[358250888,1744876304799,-500.0,0.00051506,120]
[358250889,1744876304808,-500.0,0.00051506,120]
[358250890,1744876304819,-561.46,0.00051506,30]
[358250891,1744876304828,-366.84855191,0.00051506,120]
[358250892,1744876304837,-889.17,0.00051506,120]
[358250893,1744876304846,-1598.19,0.00051506,120]
[358250894,1744876304855,-500.0,0.00051506,120]
[358250895,1744876304864,-2447.13,0.00051506,120]
[358250896,1744876304873,-934.81,0.00051506,120]
[358250897,1744876304882,-500.0,0.00051506,120]
[358250898,1744876304891,-558.88,0.00051506,120]
[358250899,1744876304900,-500.0,0.00051506,120]
[358250900,1744876304909,-500.0,0.00051506,120]
[358250901,1744876304918,-500.0,0.00051506,120]
[358250902,1744876304927,-500.0,0.00051506,120]
[358250903,1744876304936,-120995.21,0.00051506,7]
[358250904,1744876304946,-500.0,0.00051506,120]
[358250905,1744876304955,-1597.3,0.00051506,120]
[358250906,1744876304964,-724.18,0.00051506,2]
[358250907,1744876304973,-500.0,0.00051506,120]
[358250908,1744876304983,-500.0,0.00051506,120]
[358250909,1744876304992,-1073.23,0.00051506,120]
[358250910,1744876305001,-852.63,0.00051506,120]
[358250911,1744876305010,-500.0,0.00051506,120]
[358250912,1744876305019,-9618.82,0.00051506,2]
[358250913,1744876305028,-500.0,0.00051506,120]
[358250914,1744876305038,-500.0,0.00051506,120]
[358250915,1744876305047,-500.0,0.00051506,120]
[358250916,1744876305056,-748.68,0.00051506,120]
[358250917,1744876305065,-507.6,0.00051506,120]
[358250918,1744876305075,-4167.06,0.00051506,120]
[358250919,1744876305084,-547.49,0.00051506,120]
[358250920,1744876305093,-762.47,0.00051506,120]
[358250921,1744876305103,-1761.11,0.00051506,120]
[358250922,1744876305112,-500.0,0.00051506,120]
[358250923,1744876305125,-500.0,0.00051506,120]
[358250924,1744876305134,-603.07,0.00051506,120]
[358250925,1744876305143,-677.96,0.00051506,120]
[358250926,1744876305151,-895.97,0.00051506,120]
[358250927,1744876305161,-2042.51,0.00051506,120]
[358250928,1744876305171,-2095.32,0.00051506,120]
[358250929,1744876305180,-505.2346775,0.00051506,120]
[358250930,1744876305189,-500.0,0.00051506,120]
[358250931,1744876305199,-783.72,0.00051506,120]
[358250932,1744876305210,-568.82,0.00051506,120]
[358250933,1744876305219,-670.78,0.00051506,120]